[Event "Czech Youth U16 Girls 2024"]
[Site "Kouty nad Desnou"]
[Date "2024.03.11"]
[Round "3.2"]
[White "Sikorova, Jana"]
[Black "Dobsa, Emma"]
[Result "0-1"]
[ECO "D10"]
[WhiteElo "1788"]
[BlackElo "1750"]
[Annotator "NA RC"]
[PlyCount "130"]
[EventDate "2024.03.10"]
[EventType "swiss"]
[EventCountry "CZE"]
[SourceTitle "playchess.com"]
[Source "ChessBase"]
[SourceQuality "1"]
[TimeControl "40/5400+30:1800+30"]

1. d4 {[%emt 0:00:04]} d5 {[%emt 0:00:03]} 2. c4 {[%emt 0:00:09]} c6 {[%emt 0:00:04]} 3. cxd5 {[%emt 0:00:09]} cxd5 {[%emt 0:00:07]} 4. Nc3 {[%emt 0:00:10]} Nf6 {[%emt 0:00:51]} 5. Nf3 {[%emt 0:00:36]} Nc6 {[%emt 0:00:10]} 6. Bf4 {[%emt 0:00:59]} Qb6 {[%emt 0:06:56]} 7. Qb3 {[%emt 0:02:35]} Bf5 {[%emt 0:15:28]} 8. Qxb6 {[%emt 0:03:34]} axb6 {[%emt 0:00:12]} 9. e3 {[%emt 0:03:16]} e6 {[%emt 0:03:52]} 10. Rc1 {[%emt 0:09:38]} Be7 {[%emt 0:05:00]} 11. Bb5 {[%emt 0:03:25]} O-O {[%emt 0:01:50]} 12. Nh4 {[%emt 0:02:25]} Bg4 {[%emt 0:04:45]} 13. h3 {[%emt 0:02:51]} Bh5 {[%emt 0:00:26]} 14. g4 {[%emt 0:02:33]} Bg6 {[%emt 0:10:13]} 15. Nxg6 {[%emt 0:02:28]} hxg6 {[%emt 0:00:27]} 16. Ke2 {[%emt 0:01:49]} Rfc8 {[%emt 0:06:34]} 17. a3 {[%emt 0:04:59]} Na5 {[%emt 0:04:38]} 18. Rc2 {[%emt 0:06:30]} Ne4 {[%emt 0:06:26]} 19. Bd7 {[%emt 0:10:15]} Rd8 {[%emt 0:07:50]} 20. Nxe4 {[%emt 0:03:33]} Rxd7 {[%emt 0:00:36]} 21. Nd2 {[%emt 0:02:17]} b5 {[%emt 0:00:54]} 22. Rhc1 {[%emt 0:06:37]} Nc6 {[%emt 0:01:22]} 23. Nb3 {[%emt 0:03:11]} b4 {[%emt 0:03:14]} 24. axb4 {[%emt 0:00:43]} Bxb4 {[%emt 0:00:52]} 25. Nc5 {[%emt 0:02:09]} Bxc5 {[%emt 0:00:09]} 26. Rxc5 {[%emt 0:00:45]} f6 {[%emt 0:02:40]} 27. f3 {[%emt 0:03:54]} Ra2 {[%emt 0:03:01]} 28. Rb5 {[%emt 0:02:24]} e5 {[%emt 0:00:53]} 29. dxe5 {[%emt 0:01:46]} fxe5 {[%emt 0:00:02]} 30. Bg3 {[%emt 0:00:57]} Kf7 {[%emt 0:03:44]} 31. Rcc5 {[%emt 0:03:16]} Ke6 {[%emt 0:03:25]} 32. Kd2 {[%emt 0:04:36]} Ra1 {[%emt 0:01:49]} 33. Rc1 {[%emt 0:00:37]} Ra8 {[%emt 0:00:32]} 34. h4 {[%emt 0:00:48]} Na5 {[%emt 0:02:04]} 35. Kd3 {[%emt 0:02:27]} Nc4 {[%emt 0:01:48]} 36. e4 {[%emt 0:02:56]} dxe4+ {[%emt 0:02:02]} 37. Kxc4 {[%emt 0:01:41]} Rc8+ {[%emt 0:00:15]} 38. Kb3 {[%emt 0:01:41]} Rxc1 {[%emt 0:00:47]} 39. Rxe5+ {[%emt 0:01:10]} Kf7 {[%emt 0:00:18]} 40. Rxe4 {[%emt 0:01:06]} Rd3+ {[%emt 0:00:11]} 41. Kb4 {[%emt 0:30:36]} Rxf3 {[%emt 0:31:23]} 42. Bd6 {[%emt 0:02:23]} Rg1 {[%emt 0:00:00]} 43. g5 {[%emt 0:00:00]} Rh1 {[%emt 0:00:00]} 44. Re7+ {[%emt 0:00:00]} Kg8 {[%emt 0:00:00]} 45. Rxb7 {[%emt 0:00:00]} Rxh4+ {[%emt 0:00:00]} 46. Kc5 {[%emt 0:00:00]} Rf5+ {[%emt 0:00:00]} 47. Kb6 {[%emt 0:00:00]} Rh3 {[%emt 0:00:00]} 48. b4 {[%emt 0:00:00]} Rxg5 {[%emt 0:00:00]} 49. b5 {[%emt 0:00:00]} Rd5 {[%emt 0:00:00]} 50. Kc6 {[%emt 0:00:00]} Rd1 {[%emt 0:00:00]} 51. Re7 {[%emt 0:00:00]} Rc3+ {[%emt 0:00:00]} 52. Bc5 {[%emt 0:00:00]} Rf1 {[%emt 0:00:00]} 53. Re5 {[%emt 0:00:00]} Rf6+ {[%emt 0:00:00]} 54. Kd5 {[%emt 0:00:00]} Rb3 {[%emt 0:00:00]} 55. b6 {[%emt 0:00:00]} Rbxb6 {[%emt 0:00:00]} 56. Bxb6 {[%emt 0:00:00]} Rxb6 {[%emt 0:00:00]} 57. Ke4 {[%emt 0:00:00]} Kf7 {[%emt 0:00:00]} 58. Kf4 {[%emt 0:01:32]} Kf6 {[%emt 0:00:00]} 59. Re4 {[%emt 0:00:34]} g5+ {[%emt 0:01:35]} 60. Kg4 {[%emt 0:00:32]} Kg6 {[%emt 0:00:13]} 61. Rc4 {[%emt 0:00:46]} Rf6 {[%emt 0:00:12]} 62. Kg3 {[%emt 0:00:52]} Kh5 {[%emt 0:00:30]} 63. Rc7 {[%emt 0:02:00]} Rg6 {[%emt 0:00:15]} 64. Rc5 {[%emt 0:00:23]} Rb6 {[%emt 0:01:11]} 65. Rc3 {[%emt 0:00:38]} Rb5 {[%emt 0:01:17]} 0-1

[Event "Czech Youth U16 Girls 2024"]
[Site "Kouty nad Desnou"]
[Date "2024.03.11"]
[Round "3.3"]
[White "Dominikova, Denisa"]
[Black "Lackova, Ludmila"]
[Result "1/2-1/2"]
[ECO "C42"]
[WhiteElo "1716"]
[BlackElo "1652"]
[Annotator "NA RC"]
[PlyCount "101"]
[EventDate "2024.03.10"]
[EventType "swiss"]
[EventCountry "CZE"]
[SourceTitle "playchess.com"]
[Source "ChessBase"]
[SourceQuality "1"]
[TimeControl "40/5400+30:1800+30"]

1. e4 {[%emt 0:00:09]} e5 {[%emt 0:00:07]} 2. Nf3 {[%emt 0:00:14]} Nf6 {[%emt 0:00:05]} 3. Nxe5 {[%emt 0:00:25]} d6 {[%emt 0:00:10]} 4. Nf3 {[%emt 0:00:13]} Nxe4 {[%emt 0:00:06]} 5. Nc3 {[%emt 0:00:35]} Nxc3 {[%emt 0:00:06]} 6. dxc3 {[%emt 0:00:11]} Be7 {[%emt 0:00:04]} 7. Be3 {[%emt 0:00:36]} Nd7 {[%emt 0:03:17]} 8. Qd2 {[%emt 0:04:49]} O-O {[%emt 0:00:15]} 9. O-O-O {[%emt 0:02:05]} c6 {[%emt 0:00:17]} 10. h4 {[%emt 0:07:22]} d5 {[%emt 0:01:46]} 11. Bd3 {[%emt 0:14:49]} Nc5 {[%emt 0:03:32]} 12. Nd4 {[%emt 0:05:43]} Nxd3+ {[%emt 0:00:32]} 13. Qxd3 {[%emt 0:00:25]} Bc5 {[%emt 0:03:19]} 14. g4 {[%emt 0:12:35]} a5 {[%emt 0:08:45]} 15. Nf5 {[%emt 0:04:04]} Bxe3+ {[%emt 0:03:17]} 16. Qxe3 {[%emt 0:01:44]} Bxf5 {[%emt 0:12:17]} 17. gxf5 {[%emt 0:00:19]} Qf6 {[%emt 0:02:42]} 18. Rdg1 {[%emt 0:10:02]} h6 {[%emt 0:03:23]} 19. Kb1 {[%emt 0:05:55]} b5 {[%emt 0:01:31]} 20. Rh2 {[%emt 0:02:56]} Kh7 {[%emt 0:02:18]} 21. Rhg2 {[%emt 0:01:38]} Rg8 {[%emt 0:00:25]} 22. Qd3 {[%emt 0:01:49]} Rae8 {[%emt 0:06:56]} 23. f4 {[%emt 0:06:12]} Re4 {[%emt 0:01:59]} 24. Qg3 {[%emt 0:03:58]} b4 {[%emt 0:00:53]} 25. h5 {[%emt 0:05:25]} a4 {[%emt 0:10:05]} 26. cxb4 {[%emt 0:04:36]} Rxb4 {[%emt 0:00:09]} 27. c3 {[%emt 0:00:29]} Rb5 {[%emt 0:01:44]} 28. Qd3 {[%emt 0:01:34]} d4 {[%emt 0:17:00]} 29. Qxd4 {[%emt 0:03:29]} Qxd4 {[%emt 0:00:45]} 30. cxd4 {[%emt 0:00:04]} Rxf5 {[%emt 0:00:22]} 31. Rc1 {[%emt 0:00:39]} Rxf4 {[%emt 0:00:32]} 32. Rxc6 {[%emt 0:00:41]} Rxd4 {[%emt 0:00:21]} 33. Rc7 {[%emt 0:00:23]} Rh4 {[%emt 0:04:23]} 34. Rxf7 {[%emt 0:00:26]} Rxh5 {[%emt 0:00:10]} 35. Rg4 {[%emt 0:00:41]} Ra5 {[%emt 0:01:00]} 36. Kc2 {[%emt 0:00:30]} h5 {[%emt 0:00:23]} 37. Rg2 {[%emt 0:00:21]} Kh6 {[%emt 0:00:30]} 38. Rc7 {[%emt 0:00:41]} h4 {[%emt 0:02:20]} 39. Kc3 {[%emt 0:00:33]} g5 {[%emt 0:01:30]} 40. Kb4 {[%emt 0:00:35]} Raa8 {[%emt 0:00:45]} 41. Rg1 {[%emt 0:13:04]} h3 {[%emt 0:02:05]} 42. Rd7 {[%emt 0:02:58]} g4 {[%emt 0:01:36]} 43. Rd6+ {[%emt 0:00:26]} Kh5 {[%emt 0:00:41]} 44. Rd5+ {[%emt 0:01:13]} Kh4 {[%emt 0:00:21]} 45. Rd7 {[%emt 0:01:05]} Rg5 {[%emt 0:00:43]} 46. Rh7+ {[%emt 0:00:49]} Rh5 {[%emt 0:02:01]} 47. Rg7 {[%emt 0:00:18]} Rb8+ {[%emt 0:01:00]} 48. Kxa4 {[%emt 0:04:32]} Ra8+ {[%emt 0:00:09]} 49. Kb4 {[%emt 0:00:51]} Rb8+ {[%emt 0:00:06]} 50. Kc4 {[%emt 0:00:47]} Rc8+ {[%emt 0:00:09]} 51. Kd4 1/2-1/2

[Event "Czech Youth U16 Girls 2024"]
[Site "Kouty nad Desnou"]
[Date "2024.03.11"]
[Round "3.4"]
[White "Zadrapova, Amalie"]
[Black "Hetfleischova, Elen"]
[Result "1-0"]
[ECO "B57"]
[WhiteElo "1857"]
[BlackElo "1699"]
[Annotator "NA RC"]
[PlyCount "95"]
[EventDate "2024.03.10"]
[EventType "swiss"]
[EventCountry "CZE"]
[SourceTitle "playchess.com"]
[Source "ChessBase"]
[SourceQuality "1"]
[TimeControl "40/5400+30:1800+30"]

1. e4 {[%emt 0:00:03]} c5 {[%emt 0:00:31]} 2. Nf3 {[%emt 0:00:07]} d6 {[%emt 0:00:08]} 3. d4 {[%emt 0:00:05]} cxd4 {[%emt 0:00:14]} 4. Nxd4 {[%emt 0:00:07]} Nf6 {[%emt 0:00:09]} 5. Nc3 {[%emt 0:00:06]} Nc6 {[%emt 0:00:10]} 6. Bc4 {[%emt 0:04:40]} e5 {[%emt 0:04:00]} 7. Nf3 {[%emt 0:01:32]} Be6 {[%emt 0:01:24]} 8. Bb3 {[%emt 0:00:49] B57: Classical Sicilian: Sozin with 6...Qb6.} Be7 {[%emt 0:02:47]} 9. O-O {[%emt 0:02:05]} O-O {[%emt 0:00:19]} 10. Re1 {[%emt 0:03:07]} a6 {[%emt 0:00:54]} 11. Bg5 {[%emt 0:02:11]} b5 {[%emt 0:01:35]} 12. Bxf6 {[%emt 0:03:24]} Bxf6 {[%emt 0:00:22]} 13. Bd5 {[%emt 0:00:29]} Qd7 {[%emt 0:02:57]} 14. a3 {[%emt 0:02:21]} Rab8 {[%emt 0:02:14]} 15. Nd2 {[%emt 0:14:41]} (15. Qd3 $142) 15... a5 {[%emt 0:02:18]} 16. Nb3 {[%emt 0:03:49]} Bd8 {[%emt 0:10:37]} 17. Qd2 {[%emt 0:03:06]} Ne7 {[%emt 0:02:40]} 18. Rad1 {[%emt 0:03:10]} (18. Bxe6 $11 {feels stronger.} fxe6 19. Nc5) 18... Bc7 {[%emt 0:01:09]} (18... Bg4 $15 19. Ra1 Bb6) 19. Qg5 {[%emt 0:08:29]} (19. Kh1 $11) 19... b4 {[%emt 0:08:08]} 20. Bxe6 {[%emt 0:06:50]} fxe6 {[%emt 0:05:30]} 21. axb4 {[%emt 0:01:40]} axb4 {[%emt 0:01:36]} 22. Nc5 {[%emt 0:02:48]} Qc8 {[%emt 0:03:19]} 23. Qxe7 {[%emt 0:02:16] [#]} Re8 $1 {[%emt 0:09:37]} 24. Qg5 {[%emt 0:04:53]} bxc3 {[%emt 0:01:52]} 25. Nb3 {[%emt 0:00:42]} cxb2 {[%emt 0:01:03]} 26. Rb1 {[%emt 0:00:49]} d5 {[%emt 0:11:42]} 27. Rxb2 {[%emt 0:01:05]} Bd6 {[%emt 0:02:53]} (27... Ba5 $17 28. Reb1 Bc3) 28. Ra2 {[%emt 0:06:54]} d4 {[%emt 0:04:42]} 29. h3 {[%emt 0:01:42]} Rf8 {[%emt 0:01:11]} 30. Rea1 {[%emt 0:03:05]} h6 {[%emt 0:03:22]} 31. Qg3 {[%emt 0:02:24]} Kh7 {[%emt 0:02:50]} (31... Rb6 $11 {hält das Gleichgewicht.}) 32. Nc1 {[%emt 0:04:29]} Rf6 {[%emt 0:02:07]} 33. Nd3 {[%emt 0:01:45]} Rg6 {[%emt 0:02:42]} 34. Qf3 {[%emt 0:00:11]} Qc4 {[%emt 0:01:30]} 35. Qf7 {[%emt 0:06:01]} Rf6 {[%emt 0:03:16]} 36. Qd7 {[%emt 0:00:39]} Qc7 {[%emt 0:01:26]} 37. Ra7 {[%emt 0:01:10]} Qxd7 {[%emt 0:00:57]} 38. Rxd7 {[%emt 0:00:04]} Rb6 {[%emt 0:00:37]} 39. Raa7 {[%emt 0:00:43]} Rg6 {[%emt 0:00:10]} (39... Rb1+ 40. Kh2 Bf8) 40. Rd8 {[%emt 0:01:54]} Rc6 $18 {[%emt 0:00:33]} 41. Rad7 {[%emt 0:30:54]} Ba3 {[%emt 0:34:54]} 42. Nxe5 {[%emt 0:01:18]} Rxc2 {[%emt 0:00:00]} 43. Nxg6 {[%emt 0:00:00]} Rc1+ {[%emt 0:00:00]} 44. Kh2 {[%emt 0:00:00]} Kxg6 {[%emt 0:00:00]} 45. Rg8 {[%emt 0:00:00]} Rd1 {[%emt 0:00:00]} 46. Rgxg7+ {[%emt 0:00:00]} Kf6 {[%emt 0:00:00]} 47. f4 {[%emt 0:00:00]} e5 {[%emt 0:00:00]} 48. f5 {[%emt 0:00:00]} 1-0

[Event "Czech Youth U16 Girls 2024"]
[Site "Kouty nad Desnou"]
[Date "2024.03.11"]
[Round "3.5"]
[White "Janouskova, Adela"]
[Black "Kaplanova, Dominika"]
[Result "0-1"]
[ECO "B10"]
[WhiteElo "1684"]
[BlackElo "1837"]
[Annotator "NA RC"]
[PlyCount "102"]
[EventDate "2024.03.10"]
[EventType "swiss"]
[EventCountry "CZE"]
[SourceTitle "playchess.com"]
[Source "ChessBase"]
[SourceQuality "1"]
[TimeControl "40/5400+30:1800+30"]

1. e4 {[%emt 0:00:25]} c6 {[%emt 0:00:29]} 2. c4 {[%emt 0:02:32]} d5 {[%emt 0:00:54]} 3. cxd5 {[%emt 0:00:11]} cxd5 {[%emt 0:00:10]} 4. exd5 {[%emt 0:00:03]} Nf6 {[%emt 0:00:15]} 5. Nc3 {[%emt 0:01:27]} Nxd5 {[%emt 0:01:38]} 6. Nf3 {[%emt 0:02:36]} Nc6 {[%emt 0:03:14]} 7. d4 {[%emt 0:00:52]} e6 {[%emt 0:02:09]} 8. Bd3 {[%emt 0:03:47]} Be7 {[%emt 0:06:06]} 9. O-O {[%emt 0:00:43]} O-O {[%emt 0:01:35]} 10. Re1 {[%emt 0:00:47]} h6 {[%emt 0:04:08]} 11. a3 {[%emt 0:02:39]} Bf6 {[%emt 0:03:40]} 12. Bc2 {[%emt 0:02:29] D42: Queen's Gambit Declined: Semi-Tarrasch: 5 cxd5 Nxd5 6 e3 Nc6 7 Bd3 .} Nde7 {[%emt 0:08:44]} 13. Qd3 {[%emt 0:03:51]} Ng6 $1 {[%emt 0:03:30]} 14. Be3 {[%emt 0:03:59]} Re8 {[%emt 0:05:23]} 15. Rad1 {[%emt 0:02:24]} Nce7 {[%emt 0:09:27]} 16. Ne4 {[%emt 0:14:23]} Nd5 {[%emt 0:05:39]} (16... Nf5 $142) 17. Nxf6+ {[%emt 0:02:38]} (17. Ne5 $142) 17... Nxf6 {[%emt 0:01:39]} 18. Qe2 {[%emt 0:16:45]} (18. Qd2 $16) 18... Ne7 {[%emt 0:05:13]} 19. Ne5 {[%emt 0:02:49]} Ned5 {[%emt 0:04:19]} 20. Qf3 {[%emt 0:05:01]} Bd7 {[%emt 0:07:42]} 21. Qg3 {[%emt 0:01:18]} (21. Bd2 $16) 21... Nxe3 {[%emt 0:03:48]} 22. fxe3 {[%emt 0:01:14]} Re7 {[%emt 0:03:33]} 23. Rf1 {[%emt 0:02:40]} Kf8 $2 {[%emt 0:03:03]} (23... Ne8 24. Rxf7 Rxf7) 24. Rf2 {[%emt 0:18:52]} Bb5 {[%emt 0:01:36]} 25. a4 {[%emt 0:03:12]} Bc6 {[%emt 0:01:11]} 26. Rdf1 {[%emt 0:01:08]} Rc7 {[%emt 0:02:07]} 27. Ng4 $2 {[%emt 0:03:00]} (27. Qh4 $18 Qd5 28. Bd3) 27... Nxg4 {[%emt 0:03:36]} 28. Qxg4 {[%emt 0:00:01]} Kg8 {[%emt 0:01:43]} 29. Rf6 {[%emt 0:01:57]} (29. Qh5 $1 $11 Qd5 30. Qxd5 Bxd5 31. e4) 29... h5 {[%emt 0:04:57]} 30. Qg5 {[%emt 0:01:10]} (30. Qxh5 $2 {verliert.} gxf6 31. Qh6 (31. Qh7+ $2 Kf8 $19) 31... f5 $19) (30. Qg3 $11 Bxg2 31. Qxg2 Rxc2 32. Qxc2 gxf6 33. Qg2+ Kf8 34. Qxb7) 30... Qd5 {[%emt 0:01:17]} 31. Qg3 {[%emt 0:00:26]} Qxg2+ {[%emt 0:01:13]} 32. Qxg2 {[%emt 0:00:10]} Bxg2 {[%emt 0:00:04]} 33. Kxg2 {[%emt 0:00:40]} Rxc2+ {[%emt 0:00:04]} 34. R6f2 {[%emt 0:00:06]} Rac8 {[%emt 0:00:33]} 35. Kg3 {[%emt 0:00:33]} Rxf2 {[%emt 0:00:17]} 36. Rxf2 {[%emt 0:00:02]} Rc4 {[%emt 0:00:27]} 37. Rd2 {[%emt 0:01:22]} Rxa4 {[%emt 0:00:36]} 38. e4 {[%emt 0:00:09]} Kf8 {[%emt 0:01:10]} 39. Kf4 {[%emt 0:00:37]} f6 {[%emt 0:00:42]} 40. h4 {[%emt 0:00:35]} (40. Ke3 $142) 40... Rc4 {[%emt 0:01:14]} 41. Ke3 {[%emt 0:00:57]} Rc1 {[%emt 0:01:27]} 42. Rh2 $19 {[%emt 0:00:17]} Rg1 {[%emt 0:04:20]} 43. Kf3 {[%emt 0:01:22]} Ke7 {[%emt 0:00:56]} 44. Ke3 {[%emt 0:00:20]} Rg3+ {[%emt 0:01:14]} 45. Kd2 {[%emt 0:00:15]} Kd6 {[%emt 0:00:17]} 46. Ke2 {[%emt 0:00:12]} Rb3 {[%emt 0:00:34]} 47. Kf1 {[%emt 0:00:16]} Re3 {[%emt 0:01:31]} 48. Re2 {[%emt 0:00:13]} Rxe2 {[%emt 0:00:54]} 49. Kxe2 {[%emt 0:00:01]} f5 {[%emt 0:00:17]} 50. Kf3 {[%emt 0:00:20]} g6 {[%emt 0:01:39]} 51. Kf4 {[%emt 0:00:10]} a5 {[%emt 0:01:52]} 0-1

[Event "Czech Youth U16 Girls 2024"]
[Site "Kouty nad Desnou"]
[Date "2024.03.11"]
[Round "3.6"]
[White "Mikesova, Lenka"]
[Black "Dudkova, Josefina"]
[Result "1-0"]
[ECO "B35"]
[WhiteElo "1665"]
[BlackElo "1796"]
[Annotator "NA RC"]
[PlyCount "79"]
[EventDate "2024.03.10"]
[EventType "swiss"]
[EventCountry "CZE"]
[SourceTitle "playchess.com"]
[Source "ChessBase"]
[SourceQuality "1"]
[TimeControl "40/5400+30:1800+30"]

1. e4 {[%emt 0:00:02]} c5 {[%emt 0:00:11]} 2. Nf3 {[%emt 0:00:13]} Nc6 {[%emt 0:00:11]} 3. d4 {[%emt 0:00:12]} cxd4 {[%emt 0:00:07]} 4. Nxd4 {[%emt 0:00:33]} g6 {[%emt 0:00:31]} 5. Nc3 {[%emt 0:00:34]} Bg7 {[%emt 0:00:10]} 6. Be3 {[%emt 0:00:36]} Nf6 {[%emt 0:00:16]} 7. Bc4 {[%emt 0:00:47]} O-O {[%emt 0:01:43]} 8. Bb3 {[%emt 0:01:05]} d6 {[%emt 0:05:53]} 9. f3 {[%emt 0:00:47]} Bd7 {[%emt 0:02:00]} 10. Qd2 {[%emt 0:00:59]} Nxd4 {[%emt 0:02:45]} 11. Bxd4 {[%emt 0:00:21]} b5 {[%emt 0:04:45]} 12. O-O-O {[%emt 0:05:08]} a5 {[%emt 0:04:45]} 13. Nd5 {[%emt 0:03:49]} Nxd5 {[%emt 0:07:53]} 14. Bxg7 {[%emt 0:01:13]} Kxg7 {[%emt 0:00:27]} 15. Bxd5 {[%emt 0:00:36]} Rb8 {[%emt 0:00:44]} 16. e5 {[%emt 0:05:10]} e6 {[%emt 0:05:45]} 17. Be4 {[%emt 0:05:34]} d5 {[%emt 0:00:24]} 18. Bd3 {[%emt 0:01:41]} b4 {[%emt 0:09:28]} 19. h4 {[%emt 0:01:40]} h6 {[%emt 0:15:42]} 20. g4 {[%emt 0:06:57]} Rh8 {[%emt 0:05:17]} 21. f4 {[%emt 0:02:30]} f5 {[%emt 0:04:09]} 22. h5 {[%emt 0:04:12]} g5 {[%emt 0:08:30]} 23. Rdg1 {[%emt 0:05:05]} Kh7 {[%emt 0:05:50]} 24. gxf5 {[%emt 0:01:36]} exf5 {[%emt 0:00:43]} 25. fxg5 {[%emt 0:00:33]} Rg8 {[%emt 0:04:25]} 26. g6+ {[%emt 0:03:41]} Kg7 {[%emt 0:00:15]} 27. Rf1 {[%emt 0:01:37]} Rf8 {[%emt 0:00:45]} 28. Kb1 {[%emt 0:02:25]} Qc7 {[%emt 0:02:00]} 29. Qe2 {[%emt 0:05:37]} Be6 {[%emt 0:00:34]} 30. Rh4 {[%emt 0:03:58]} a4 {[%emt 0:01:28]} 31. Rhf4 {[%emt 0:04:36]} Qd7 {[%emt 0:00:26]} 32. Qf2 {[%emt 0:03:09]} b3 {[%emt 0:01:54]} 33. cxb3 {[%emt 0:02:08]} axb3 {[%emt 0:00:19]} 34. a3 {[%emt 0:00:43]} Qc7 {[%emt 0:05:19]} 35. Bxf5 {[%emt 0:00:52]} Bc8 {[%emt 0:01:51]} 36. Bxc8 {[%emt 0:01:43]} Qc2+ {[%emt 0:00:34]} 37. Qxc2 {[%emt 0:01:18]} bxc2+ {[%emt 0:00:02]} 38. Kc1 {[%emt 0:00:52]} Rfxc8 {[%emt 0:00:25]} 39. Rf7+ {[%emt 0:00:33]} Kg8 {[%emt 0:00:11]} 40. e6 {[%emt 0:01:50]} 1-0

[Event "Czech Youth U16 Girls 2024"]
[Site "Kouty nad Desnou"]
[Date "2024.03.11"]
[Round "3.7"]
[White "Zelenkova, Sofie"]
[Black "Dorazilova, Kristyna"]
[Result "1/2-1/2"]
[ECO "A05"]
[WhiteElo "1636"]
[BlackElo "1722"]
[Annotator "NA RC"]
[PlyCount "97"]
[EventDate "2024.03.10"]
[EventType "swiss"]
[EventCountry "CZE"]
[SourceTitle "playchess.com"]
[Source "ChessBase"]
[SourceQuality "1"]
[TimeControl "40/5400+30:1800+30"]

1. Nf3 {[%emt 0:00:01]} Nf6 {[%emt 0:00:06]} 2. g3 {[%emt 0:00:02]} e6 {[%emt 0:00:10]} 3. Bg2 {[%emt 0:00:11]} b6 {[%emt 0:01:04]} 4. d4 {[%emt 0:00:08]} Bb7 {[%emt 0:00:10]} 5. O-O {[%emt 0:00:14]} c5 {[%emt 0:00:41]} 6. c3 {[%emt 0:01:29]} Be7 {[%emt 0:01:07]} 7. Bg5 {[%emt 0:02:29]} d6 {[%emt 0:03:38]} 8. Nbd2 {[%emt 0:02:09]} Nbd7 {[%emt 0:00:15]} 9. Re1 {[%emt 0:02:02]} O-O {[%emt 0:04:10]} 10. e4 {[%emt 0:01:52]} h6 {[%emt 0:04:50]} 11. Bxf6 {[%emt 0:00:20]} Nxf6 {[%emt 0:00:09]} 12. c4 {[%emt 0:08:32]} d5 {[%emt 0:06:06]} 13. e5 {[%emt 0:05:09]} Nd7 {[%emt 0:01:45]} 14. b3 {[%emt 0:03:41]} Rc8 {[%emt 0:06:10]} 15. Rc1 {[%emt 0:02:05]} Rc7 {[%emt 0:02:28]} 16. Nb1 {[%emt 0:03:42]} a6 {[%emt 0:03:32]} 17. cxd5 {[%emt 0:03:42]} Bxd5 {[%emt 0:04:39]} 18. Nc3 {[%emt 0:00:34]} Bb7 {[%emt 0:08:58]} 19. d5 {[%emt 0:01:13]} exd5 {[%emt 0:00:21]} 20. Nxd5 {[%emt 0:00:13]} Bxd5 {[%emt 0:01:35]} 21. Qxd5 {[%emt 0:00:08]} Nb8 {[%emt 0:01:28]} 22. Qxd8 {[%emt 0:06:38]} Rxd8 {[%emt 0:00:43]} 23. e6 {[%emt 0:01:02]} Nc6 {[%emt 0:06:05]} 24. exf7+ {[%emt 0:07:33]} Kxf7 {[%emt 0:00:21]} 25. Ne5+ {[%emt 0:03:19]} Nxe5 {[%emt 0:00:09]} 26. Rxe5 {[%emt 0:00:06]} Rcd7 {[%emt 0:05:27]} 27. Rce1 {[%emt 0:02:43]} Bf6 {[%emt 0:00:16]} 28. Re6 {[%emt 0:03:03]} Rd6 {[%emt 0:09:22]} 29. Rxd6 {[%emt 0:00:55]} Rxd6 {[%emt 0:00:01]} 30. Bf3 {[%emt 0:01:01]} Rd2 {[%emt 0:02:23]} 31. Re2 {[%emt 0:00:24]} Rxe2 {[%emt 0:01:28]} 32. Bxe2 {[%emt 0:00:02]} b5 {[%emt 0:00:15]} 33. Bf3 {[%emt 0:02:29]} Ke6 {[%emt 0:01:23]} 34. Bb7 {[%emt 0:00:59]} a5 {[%emt 0:00:09]} 35. Ba6 {[%emt 0:00:46]} b4 {[%emt 0:00:10]} 36. Kf1 {[%emt 0:03:43]} Kd5 {[%emt 0:05:45]} 37. Ke2 {[%emt 0:00:44]} Kd4 {[%emt 0:01:25]} 38. Kd2 {[%emt 0:00:18]} Bg5+ {[%emt 0:05:05]} 39. f4 {[%emt 0:01:34]} Bd8 {[%emt 0:02:46]} 40. h4 {[%emt 0:02:29]} a4 {[%emt 0:02:29]} 41. Bc4 {[%emt 0:30:36]} Bf6 {[%emt 0:31:17]} 42. h5 {[%emt 0:02:15]} a3 {[%emt 0:01:26]} 43. Bd3 {[%emt 0:02:29]} Kd5 {[%emt 0:00:38]} 44. Bc4+ {[%emt 0:01:17]} Ke4 {[%emt 0:00:14]} 45. Ke2 {[%emt 0:00:42]} Bc3 {[%emt 0:00:18]} 46. Bd3+ {[%emt 0:02:30]} Kd4 {[%emt 0:00:17]} 47. Bc4 {[%emt 0:00:50]} Ke4 {[%emt 0:04:40]} 48. Bd3+ {[%emt 0:00:31]} Kd5 {[%emt 0:00:18]} 49. Bb5 {[%emt 0:01:48]} 1/2-1/2

[Event "Czech Youth U16 Girls 2024"]
[Site "Kouty nad Desnou"]
[Date "2024.03.11"]
[Round "3.8"]
[White "Stavova, Marketa"]
[Black "Cinkova, Vicky"]
[Result "1/2-1/2"]
[ECO "C01"]
[WhiteElo "1641"]
[BlackElo "1682"]
[Annotator "NA RC"]
[PlyCount "66"]
[EventDate "2024.03.10"]
[EventType "swiss"]
[EventCountry "CZE"]
[SourceTitle "playchess.com"]
[Source "ChessBase"]
[SourceQuality "1"]
[TimeControl "40/5400+30:1800+30"]

1. e4 {[%emt 0:00:09]} e6 {[%emt 0:00:11]} 2. d4 {[%emt 0:00:28]} d5 {[%emt 0:00:07]} 3. exd5 {[%emt 0:00:25]} exd5 {[%emt 0:00:12]} 4. Bd3 {[%emt 0:00:48]} Bd6 {[%emt 0:01:22]} 5. c3 {[%emt 0:01:48]} Nc6 {[%emt 0:01:26]} 6. Nf3 {[%emt 0:01:38]} Nge7 {[%emt 0:05:36]} 7. h3 {[%emt 0:01:44]} f6 {[%emt 0:03:11]} 8. Qc2 {[%emt 0:02:17]} g6 {[%emt 0:02:51]} 9. Nbd2 {[%emt 0:02:07]} Be6 {[%emt 0:01:58]} 10. Nf1 {[%emt 0:03:40]} Qd7 {[%emt 0:01:28]} 11. Bd2 {[%emt 0:01:19]} O-O-O {[%emt 0:01:11]} 12. O-O-O {[%emt 0:01:14]} Rdg8 {[%emt 0:06:08]} 13. Ne3 {[%emt 0:02:19]} h6 {[%emt 0:04:14]} 14. Nh2 {[%emt 0:09:07]} h5 {[%emt 0:14:45]} 15. Rdg1 {[%emt 0:07:15]} f5 {[%emt 0:03:15]} 16. Nd1 {[%emt 0:01:51]} Nd8 {[%emt 0:06:28]} 17. f4 {[%emt 0:04:14]} Bf7 {[%emt 0:05:36]} 18. h4 {[%emt 0:01:33]} Ne6 {[%emt 0:01:34]} 19. g3 {[%emt 0:00:20]} Re8 {[%emt 0:00:10]} 20. Nf3 {[%emt 0:01:13]} Ng8 {[%emt 0:07:17]} 21. Ne3 {[%emt 0:04:01]} c6 {[%emt 0:02:46]} 22. Re1 {[%emt 0:05:18]} Nf6 {[%emt 0:01:34]} 23. Rhg1 {[%emt 0:02:10]} Ne4 {[%emt 0:01:38]} 24. Ne5 {[%emt 0:02:48]} Qc7 {[%emt 0:01:03]} 25. Kb1 {[%emt 0:02:51]} Rhg8 {[%emt 0:02:24]} 26. Bc1 {[%emt 0:03:22]} Re7 {[%emt 0:04:39]} 27. Nf3 {[%emt 0:03:16]} Rge8 {[%emt 0:04:16]} 28. Nd2 {[%emt 0:04:06]} Ng7 {[%emt 0:02:18]} 29. Ndf1 {[%emt 0:04:02]} Kb8 {[%emt 0:03:47]} 30. Rg2 {[%emt 0:03:46]} Rf8 {[%emt 0:01:38]} 31. Qd1 {[%emt 0:01:34]} Qb6 {[%emt 0:02:02]} 32. Ka1 {[%emt 0:00:49]} Ne8 {[%emt 0:00:54]} 33. Bc2 {[%emt 0:02:44]} N8f6 {[%emt 0:01:38]} 1/2-1/2